[Event "Titled Tuesday Blitz November 2 2021"]
[White "Le, Tuan Minh"]
[Black "Smirnov, Pavel"]
[WhiteFideId "12401153"]
[BlackFideId "4123425"]
[WhiteElo "2450"]
[BlackElo "2571"]
[Result "1/2-1/2"]
[Round "06"]
[TimeControl "180+1"]
[Date "2021.11.02"]
[WhiteClock "0:00:08"]
[BlackClock "0:00:04"]

1. d4 {[%clk 0:02:57]}  Nf6 {[%clk 0:03:00]} 2. Nf3 {[%clk 0:02:56]}  d5 {[%clk 0:02:58]} 3. Bf4 {[%clk 0:02:56]}  e6 {[%clk 0:02:58]} 4. e3 {[%clk 0:02:57]}  Bd6 {[%clk 0:02:59]} 5. Nbd2 {[%clk 0:02:57]}  O-O {[%clk 0:02:58]} 6. c3 {[%clk 0:02:58]}  Bxf4 {[%clk 0:02:57]} 7. exf4 {[%clk 0:02:58]}  b6 {[%clk 0:02:58]} 8. Bd3 {[%clk 0:02:58]}  Ba6 {[%clk 0:02:57]} 9. Bxa6 {[%clk 0:02:58]}  Nxa6 {[%clk 0:02:58]} 10. Qe2 {[%clk 0:02:59]}  Nb8 {[%clk 0:02:57]} 11. O-O {[%clk 0:03:00]}  c5 {[%clk 0:02:57]} 12. Rfe1 {[%clk 0:03:00]}  Nc6 {[%clk 0:02:57]} 13. Rad1 {[%clk 0:03:00]}  Qc7 {[%clk 0:02:55]} 14. g3 {[%clk 0:02:59]}  Rab8 {[%clk 0:02:52]} 15. Nf1 {[%clk 0:02:59]}  cxd4 {[%clk 0:02:32]} 16. cxd4 {[%clk 0:02:58]}  Rfc8 {[%clk 0:02:33]} 17. Ne3 {[%clk 0:02:57]}  Ne4 {[%clk 0:02:29]} 18. f5 {[%clk 0:02:50]}  Qd7 {[%clk 0:02:25]} 19. fxe6 {[%clk 0:02:40]}  Qxe6 {[%clk 0:02:21]} 20. Nxd5 {[%clk 0:02:25]}  Qxd5 {[%clk 0:02:19]} 21. Qxe4 {[%clk 0:02:25]}  Rd8 {[%clk 0:02:20]} 22. Qf4 {[%clk 0:01:57]}  h6 {[%clk 0:02:11]} 23. a3 {[%clk 0:01:55]}  Rd6 {[%clk 0:02:08]} 24. Re4 {[%clk 0:01:44]}  Rbd8 {[%clk 0:01:57]} 25. Rde1 {[%clk 0:01:41]}  Kh7 {[%clk 0:01:47]} 26. Qe3 {[%clk 0:01:27]}  Rf6 {[%clk 0:01:41]} 27. Kg2 {[%clk 0:01:19]}  Rdd6 {[%clk 0:01:24]} 28. Qd3 {[%clk 0:01:12]}  g6 {[%clk 0:01:24]} 29. Qc3 {[%clk 0:01:07]}  Rf5 {[%clk 0:01:21]} 30. Qe3 {[%clk 0:00:33]}  Rdf6 {[%clk 0:01:18]} 31. Ne5 {[%clk 0:00:24]}  Rxf2+ {[%clk 0:01:03]} 32. Qxf2 {[%clk 0:00:24]}  Rxf2+ {[%clk 0:01:03]} 33. Kxf2 {[%clk 0:00:25]}  Nxd4 {[%clk 0:00:50]} 34. Rf4 {[%clk 0:00:22]}  Nf5 {[%clk 0:00:43]} 35. Re2 {[%clk 0:00:08]}  h5 {[%clk 0:00:34]} 36. Nf3 {[%clk 0:00:07]}  Qc5+ {[%clk 0:00:31]} 37. Ke1 {[%clk 0:00:06]}  Kh6 {[%clk 0:00:26]} 38. Rfe4 {[%clk 0:00:05]}  f6 {[%clk 0:00:19]} 39. Kf1 {[%clk 0:00:05]}  Qd5 {[%clk 0:00:17]} 40. Kg2 {[%clk 0:00:05]}  g5 {[%clk 0:00:17]} 41. h3 {[%clk 0:00:05]}  Kg6 {[%clk 0:00:16]} 42. g4 {[%clk 0:00:03]}  hxg4 {[%clk 0:00:16]} 43. hxg4 {[%clk 0:00:04]}  Nh6 {[%clk 0:00:16]} 44. Kg3 {[%clk 0:00:04]}  Qd6+ {[%clk 0:00:15]} 45. Kh3 {[%clk 0:00:05]}  Qd7 {[%clk 0:00:15]} 46. Kg3 {[%clk 0:00:05]}  Qc7+ {[%clk 0:00:15]} 47. Kg2 {[%clk 0:00:05]}  Qc8 {[%clk 0:00:15]} 48. Nh2 {[%clk 0:00:04]}  b5 {[%clk 0:00:14]} 49. Rd2 {[%clk 0:00:03]}  Qc6 {[%clk 0:00:14]} 50. Re2 {[%clk 0:00:03]}  f5 {[%clk 0:00:14]} 51. gxf5+ {[%clk 0:00:04]}  Kxf5 {[%clk 0:00:14]} 52. Kf2 {[%clk 0:00:03]}  Qxe4 {[%clk 0:00:13]} 53. Rxe4 {[%clk 0:00:04]}  Kxe4 {[%clk 0:00:14]} 54. Nf3 {[%clk 0:00:05]}  Nf7 {[%clk 0:00:14]} 55. Ke2 {[%clk 0:00:04]}  g4 {[%clk 0:00:14]} 56. Nd2+ {[%clk 0:00:04]}  Kf4 {[%clk 0:00:14]} 57. Nb3 {[%clk 0:00:04]}  g3 {[%clk 0:00:13]} 58. Nd4 {[%clk 0:00:05]}  a6 {[%clk 0:00:13]} 59. Ne6+ {[%clk 0:00:05]}  Ke4 {[%clk 0:00:13]} 60. Nc5+ {[%clk 0:00:05]}  Kf4 {[%clk 0:00:12]} 61. Nxa6 {[%clk 0:00:06]}  Ne5 {[%clk 0:00:11]} 62. Nc5 {[%clk 0:00:06]}  Kg4 {[%clk 0:00:10]} 63. Ne4 {[%clk 0:00:06]}  g2 {[%clk 0:00:09]} 64. Kf2 {[%clk 0:00:06]}  Kh3 {[%clk 0:00:09]} 65. Nc3 {[%clk 0:00:04]}  Kh2 {[%clk 0:00:07]} 66. Ne2 {[%clk 0:00:04]}  Nd3+ {[%clk 0:00:07]} 67. Ke3 {[%clk 0:00:04]}  Nxb2 {[%clk 0:00:07]} 68. Kd4 {[%clk 0:00:05]}  Nc4 {[%clk 0:00:05]} 69. a4 {[%clk 0:00:05]}  Nd6 {[%clk 0:00:04]} 70. a5 {[%clk 0:00:05]}  Nc8 {[%clk 0:00:04]} 71. Kc5 {[%clk 0:00:05]}  b4 {[%clk 0:00:02]} 72. Kxb4 {[%clk 0:00:06]}  Na7 {[%clk 0:00:02]} 73. Kc5 {[%clk 0:00:06]}  g1=Q+ {[%clk 0:00:01]} 74. Nxg1 {[%clk 0:00:06]}  Kxg1 {[%clk 0:00:02]} 75. Kb6 {[%clk 0:00:06]}  Nc8+ {[%clk 0:00:03]} 76. Kc7 {[%clk 0:00:07]}  Na7 {[%clk 0:00:03]} 77. a6 {[%clk 0:00:08]}  Nb5+ {[%clk 0:00:02]} 78. Kc6 {[%clk 0:00:08]}  Na7+ {[%clk 0:00:02]} 79. Kb7 {[%clk 0:00:08]}  Nb5 {[%clk 0:00:03]} 80. Kb6 {[%clk 0:00:09]}  Nd6 {[%clk 0:00:03]} 81. Kc5 {[%clk 0:00:09]}  Nc8 {[%clk 0:00:03]} 82. Kc6 {[%clk 0:00:09]}  Na7+ {[%clk 0:00:03]} 83. Kd7 {[%clk 0:00:10]}  Nb5 {[%clk 0:00:03]} 84. Kd8 {[%clk 0:00:08]}  Na7 {[%clk 0:00:04]} 85. Kc7 {[%clk 0:00:08]}  Nb5+ {[%clk 0:00:04]} 86. Kc6 {[%clk 0:00:08]}  Na7+ {[%clk 0:00:04]} 1/2-1/2


[Site "https://www.chess.com"]

[Event "Titled Tuesday Blitz November 2 2021"]
[White "Mirzoev, Azer"]
[Black "Abdrlauf, Elham"]
[WhiteFideId "13400304"]
[BlackFideId "1533533"]
[WhiteElo "2525"]
[BlackElo "2362"]
[Result "0-1"]
[Round "06"]
[TimeControl "180+1"]
[Date "2021.11.02"]
[WhiteClock "0:00:17"]
[BlackClock "0:01:09"]

1. d4 {[%clk 0:02:59]}  Nf6 {[%clk 0:02:55]} 2. Nf3 {[%clk 0:02:59]}  e6 {[%clk 0:02:55]} 3. Bf4 {[%clk 0:02:59]}  b6 {[%clk 0:02:55]} 4. e3 {[%clk 0:02:59]}  Bb7 {[%clk 0:02:55]} 5. h3 {[%clk 0:02:59]}  Be7 {[%clk 0:02:56]} 6. Bh2 {[%clk 0:03:00]}  O-O {[%clk 0:02:56]} 7. Be2 {[%clk 0:02:59]}  d6 {[%clk 0:02:56]} 8. O-O {[%clk 0:03:00]}  Nbd7 {[%clk 0:02:56]} 9. a4 {[%clk 0:02:59]}  a5 {[%clk 0:02:56]} 10. c3 {[%clk 0:02:58]}  Ne4 {[%clk 0:02:55]} 11. Na3 {[%clk 0:02:57]}  Ndf6 {[%clk 0:02:54]} 12. Nb5 {[%clk 0:02:56]}  Qd7 {[%clk 0:02:52]} 13. Nd2 {[%clk 0:02:55]}  Nxd2 {[%clk 0:02:52]} 14. Qxd2 {[%clk 0:02:54]}  Ne4 {[%clk 0:02:53]} 15. Qc2 {[%clk 0:02:53]}  f5 {[%clk 0:02:53]} 16. f3 {[%clk 0:02:48]}  Nf6 {[%clk 0:02:51]} 17. Bd3 {[%clk 0:02:46]}  Rae8 {[%clk 0:02:41]} 18. Rfe1 {[%clk 0:02:43]}  Bd8 {[%clk 0:02:41]} 19. Na3 {[%clk 0:02:37]}  Qf7 {[%clk 0:02:33]} 20. Bb5 {[%clk 0:02:35]}  Re7 {[%clk 0:02:29]} 21. Rad1 {[%clk 0:02:32]}  Qh5 {[%clk 0:02:24]} 22. Bf1 {[%clk 0:02:18]}  g5 {[%clk 0:02:22]} 23. g4 {[%clk 0:00:56]}  fxg4 {[%clk 0:01:57]} 24. hxg4 {[%clk 0:00:56]}  Qh6 {[%clk 0:01:55]} 25. Bg2 {[%clk 0:00:55]}  Ref7 {[%clk 0:01:52]} 26. Rf1 {[%clk 0:00:47]}  Qg7 {[%clk 0:01:49]} 27. Nb5 {[%clk 0:00:45]}  h5 {[%clk 0:01:47]} 28. gxh5 {[%clk 0:00:43]}  Nxh5 {[%clk 0:01:45]} 29. Qe2 {[%clk 0:00:43]}  Qh6 {[%clk 0:01:43]} 30. Rf2 {[%clk 0:00:30]}  Nf6 {[%clk 0:01:34]} 31. f4 {[%clk 0:00:25]}  Ne4 {[%clk 0:01:25]} 32. Bxe4 {[%clk 0:00:21]}  Bxe4 {[%clk 0:01:26]} 33. Qg4 {[%clk 0:00:21]}  Rg7 {[%clk 0:01:14]} 34. Kf1 {[%clk 0:00:18]}  gxf4 {[%clk 0:01:12]} 35. Bxf4 {[%clk 0:00:16]}  Qh1+ {[%clk 0:01:12]} 36. Ke2 {[%clk 0:00:17]}  Qxd1+ {[%clk 0:01:09]} 0-1


[Site "https://www.chess.com"]

[Event "Titled Tuesday Blitz November 2 2021"]
[White "Nakamura, Hikaru"]
[Black "Timofeev, Artyom"]
[WhiteFideId "2016192"]
[BlackFideId "4140419"]
[WhiteElo "2884"]
[BlackElo "2591"]
[Result "1-0"]
[Round "06"]
[TimeControl "180+1"]
[Date "2021.11.02"]
[WhiteClock "0:00:52"]
[BlackClock "0:00:21"]

1. Nf3 {[%clk 0:03:00]}  c5 {[%clk 0:02:59]} 2. b3 {[%clk 0:02:46]}  d6 {[%clk 0:02:58]} 3. d4 {[%clk 0:02:46]}  cxd4 {[%clk 0:02:57]} 4. Qxd4 {[%clk 0:02:46]}  Nc6 {[%clk 0:02:56]} 5. Qd2 {[%clk 0:02:45]}  Nf6 {[%clk 0:02:53]} 6. c4 {[%clk 0:02:45]}  g6 {[%clk 0:02:53]} 7. Nc3 {[%clk 0:02:44]}  Bg7 {[%clk 0:02:53]} 8. Bb2 {[%clk 0:02:44]}  O-O {[%clk 0:02:53]} 9. e3 {[%clk 0:02:44]}  b6 {[%clk 0:02:52]} 10. Be2 {[%clk 0:02:44]}  Bb7 {[%clk 0:02:52]} 11. O-O {[%clk 0:02:45]}  Nd7 {[%clk 0:02:45]} 12. Rfd1 {[%clk 0:02:43]}  Nc5 {[%clk 0:02:44]} 13. Nd5 {[%clk 0:02:41]}  Bxb2 {[%clk 0:02:34]} 14. Qxb2 {[%clk 0:02:42]}  Nd7 {[%clk 0:02:34]} 15. Rd2 {[%clk 0:02:39]}  Nce5 {[%clk 0:02:32]} 16. Ne1 {[%clk 0:02:40]}  Nc5 {[%clk 0:02:27]} 17. Rad1 {[%clk 0:02:39]}  Bxd5 {[%clk 0:02:25]} 18. Rxd5 {[%clk 0:02:35]}  Ned7 {[%clk 0:02:24]} 19. Nc2 {[%clk 0:02:24]}  Nf6 {[%clk 0:02:21]} 20. R5d2 {[%clk 0:02:22]}  Nce4 {[%clk 0:02:18]} 21. Rd4 {[%clk 0:02:21]}  Rc8 {[%clk 0:02:11]} 22. Ne1 {[%clk 0:02:08]}  Nc5 {[%clk 0:02:08]} 23. Bf1 {[%clk 0:02:06]}  a6 {[%clk 0:02:06]} 24. b4 {[%clk 0:02:03]}  Ncd7 {[%clk 0:02:05]} 25. Nf3 {[%clk 0:02:01]}  Qc7 {[%clk 0:02:04]} 26. a3 {[%clk 0:02:01]}  a5 {[%clk 0:02:03]} 27. g3 {[%clk 0:01:39]}  axb4 {[%clk 0:02:03]} 28. axb4 {[%clk 0:01:40]}  Ra8 {[%clk 0:01:56]} 29. Bg2 {[%clk 0:01:40]}  Ra7 {[%clk 0:01:55]} 30. Nd2 {[%clk 0:01:37]}  Ne5 {[%clk 0:01:53]} 31. Rc1 {[%clk 0:01:36]}  Nc6 {[%clk 0:01:49]} 32. Rd3 {[%clk 0:01:36]}  Ne5 {[%clk 0:01:49]} 33. Rdc3 {[%clk 0:01:35]}  Rb8 {[%clk 0:01:47]} 34. Nb1 {[%clk 0:01:34]}  Qd7 {[%clk 0:01:41]} 35. Na3 {[%clk 0:01:34]}  Rc7 {[%clk 0:01:41]} 36. Qe2 {[%clk 0:01:33]}  Rcc8 {[%clk 0:01:28]} 37. Nb5 {[%clk 0:01:29]}  Ne8 {[%clk 0:01:19]} 38. Nd4 {[%clk 0:01:27]}  Nf6 {[%clk 0:01:18]} 39. f4 {[%clk 0:01:21]}  Nc6 {[%clk 0:01:16]} 40. Nxc6 {[%clk 0:01:21]}  Rxc6 {[%clk 0:01:17]} 41. Bxc6 {[%clk 0:01:22]}  Qxc6 {[%clk 0:01:17]} 42. Ra3 {[%clk 0:01:19]}  Ne4 {[%clk 0:01:16]} 43. Qd3 {[%clk 0:01:18]}  Rc8 {[%clk 0:01:14]} 44. Raa1 {[%clk 0:01:15]}  Qb7 {[%clk 0:01:11]} 45. Qd5 {[%clk 0:01:13]}  Qxd5 {[%clk 0:01:09]} 46. cxd5 {[%clk 0:01:14]}  Rc3 {[%clk 0:01:05]} 47. Rxc3 {[%clk 0:01:10]}  Nxc3 {[%clk 0:01:05]} 48. e4 {[%clk 0:01:11]}  Nxe4 {[%clk 0:01:02]} 49. Ra6 {[%clk 0:01:09]}  b5 {[%clk 0:01:02]} 50. Rb6 {[%clk 0:01:06]}  Nc3 {[%clk 0:01:00]} 51. Kf2 {[%clk 0:01:06]}  Kg7 {[%clk 0:00:54]} 52. Ke1 {[%clk 0:01:06]}  Kf6 {[%clk 0:00:50]} 53. Kd2 {[%clk 0:01:05]}  Nxd5 {[%clk 0:00:50]} 54. Rxb5 {[%clk 0:01:06]}  Ke6 {[%clk 0:00:51]} 55. Rb7 {[%clk 0:01:05]}  Nf6 {[%clk 0:00:46]} 56. b5 {[%clk 0:01:06]}  d5 {[%clk 0:00:36]} 57. Rc7 {[%clk 0:01:00]}  Kd6 {[%clk 0:00:35]} 58. Rc6+ {[%clk 0:00:59]}  Kd7 {[%clk 0:00:35]} 59. Kd3 {[%clk 0:00:59]}  Ne4 {[%clk 0:00:34]} 60. Rc2 {[%clk 0:00:58]}  Nd6 {[%clk 0:00:27]} 61. Rc5 {[%clk 0:00:58]}  e6 {[%clk 0:00:25]} 62. b6 {[%clk 0:00:58]}  Nc4 {[%clk 0:00:21]} 63. b7 {[%clk 0:00:52]} 1-0


[Site "https://www.chess.com"]

[Event "Titled Tuesday Blitz November 2 2021"]
[White "Narayanan.S.L"]
[Black "Fawzy, Adham"]
[WhiteFideId "5058422"]
[BlackFideId "10613129"]
[WhiteElo "2570"]
[BlackElo "2504"]
[Result "1/2-1/2"]
[Round "06"]
[TimeControl "180+1"]
[Date "2021.11.02"]
[WhiteClock "0:00:32"]
[BlackClock "0:00:07"]

1. b3 {[%clk 0:02:59]}  c5 {[%clk 0:02:59]} 2. Bb2 {[%clk 0:03:00]}  Nc6 {[%clk 0:03:00]} 3. e3 {[%clk 0:02:59]}  e5 {[%clk 0:02:59]} 4. c4 {[%clk 0:02:58]}  g6 {[%clk 0:02:59]} 5. Ne2 {[%clk 0:02:57]}  Bg7 {[%clk 0:03:00]} 6. g3 {[%clk 0:02:58]}  d6 {[%clk 0:03:00]} 7. Bg2 {[%clk 0:02:58]}  Nge7 {[%clk 0:03:01]} 8. O-O {[%clk 0:02:57]}  O-O {[%clk 0:03:01]} 9. Nbc3 {[%clk 0:02:56]}  Be6 {[%clk 0:03:02]} 10. d3 {[%clk 0:02:52]}  d5 {[%clk 0:03:02]} 11. cxd5 {[%clk 0:02:50]}  Nxd5 {[%clk 0:03:03]} 12. a3 {[%clk 0:02:50]}  Rc8 {[%clk 0:02:59]} 13. Rc1 {[%clk 0:02:50]}  b6 {[%clk 0:03:00]} 14. Qd2 {[%clk 0:02:42]}  Qd7 {[%clk 0:02:57]} 15. Rfd1 {[%clk 0:02:38]}  Rfd8 {[%clk 0:02:56]} 16. Ne4 {[%clk 0:02:36]}  Na5 {[%clk 0:02:53]} 17. Qc2 {[%clk 0:02:36]}  Ne7 {[%clk 0:02:48]} 18. Qb1 {[%clk 0:02:11]}  Bxb3 {[%clk 0:02:42]} 19. Rd2 {[%clk 0:02:10]}  f5 {[%clk 0:02:43]} 20. Nxc5 {[%clk 0:02:02]}  Rxc5 {[%clk 0:01:11]} 21. Rxc5 {[%clk 0:02:01]}  bxc5 {[%clk 0:01:12]} 22. Bc3 {[%clk 0:02:02]}  Nec6 {[%clk 0:00:40]} 23. Bxc6 {[%clk 0:02:02]}  Nxc6 {[%clk 0:00:35]} 24. Qxb3+ {[%clk 0:02:01]}  Qd5 {[%clk 0:00:32]} 25. Qxd5+ {[%clk 0:01:51]}  Rxd5 {[%clk 0:00:32]} 26. Kf1 {[%clk 0:01:51]}  Kf7 {[%clk 0:00:31]} 27. Ke1 {[%clk 0:01:51]}  g5 {[%clk 0:00:30]} 28. f3 {[%clk 0:01:50]}  Rd7 {[%clk 0:00:26]} 29. e4 {[%clk 0:01:46]}  f4 {[%clk 0:00:26]} 30. g4 {[%clk 0:01:45]}  Bf8 {[%clk 0:00:23]} 31. Bb2 {[%clk 0:01:41]}  Nd4 {[%clk 0:00:20]} 32. Kf2 {[%clk 0:01:25]}  Rb7 {[%clk 0:00:20]} 33. Nc3 {[%clk 0:01:21]}  c4 {[%clk 0:00:21]} 34. dxc4 {[%clk 0:01:16]}  Rb3 {[%clk 0:00:21]} 35. Kg2 {[%clk 0:01:12]}  Bxa3 {[%clk 0:00:21]} 36. Bxa3 {[%clk 0:01:12]}  Rxa3 {[%clk 0:00:19]} 37. Nb5 {[%clk 0:01:13]}  Nxb5 {[%clk 0:00:18]} 38. cxb5 {[%clk 0:01:13]}  Ke6 {[%clk 0:00:19]} 39. Rc2 {[%clk 0:01:12]}  Ra5 {[%clk 0:00:10]} 40. Rc6+ {[%clk 0:01:10]}  Kd7 {[%clk 0:00:10]} 41. Rh6 {[%clk 0:01:07]}  Rxb5 {[%clk 0:00:11]} 42. Rxh7+ {[%clk 0:01:07]}  Kd6 {[%clk 0:00:11]} 43. Rxa7 {[%clk 0:01:06]}  Rb2+ {[%clk 0:00:12]} 44. Kg1 {[%clk 0:01:02]}  Rb1+ {[%clk 0:00:12]} 45. Kf2 {[%clk 0:01:03]}  Rb2+ {[%clk 0:00:13]} 46. Kf1 {[%clk 0:01:03]}  Rb1+ {[%clk 0:00:13]} 47. Ke2 {[%clk 0:01:01]}  Rb2+ {[%clk 0:00:14]} 48. Kd3 {[%clk 0:00:59]}  Rf2 {[%clk 0:00:10]} 49. Rg7 {[%clk 0:00:55]}  Rxf3+ {[%clk 0:00:09]} 50. Kc4 {[%clk 0:00:56]}  Ke6 {[%clk 0:00:06]} 51. Rg6+ {[%clk 0:00:55]}  Kf7 {[%clk 0:00:05]} 52. Rxg5 {[%clk 0:00:55]}  Kf6 {[%clk 0:00:06]} 53. Rf5+ {[%clk 0:00:52]}  Ke6 {[%clk 0:00:06]} 54. Rh5 {[%clk 0:00:52]}  Rf2 {[%clk 0:00:03]} 55. Rh6+ {[%clk 0:00:52]}  Kf7 {[%clk 0:00:03]} 56. Kd5 {[%clk 0:00:53]}  Kg7 {[%clk 0:00:04]} 57. g5 {[%clk 0:00:52]}  f3 {[%clk 0:00:01]} 58. Kxe5 {[%clk 0:00:50]}  Ra2 {[%clk 0:00:01]} 59. Rf6 {[%clk 0:00:47]}  Ra5+ {[%clk 0:00:02]} 60. Kd4 {[%clk 0:00:47]}  Ra4+ {[%clk 0:00:02]} 61. Ke3 {[%clk 0:00:47]}  Ra3+ {[%clk 0:00:02]} 62. Kf2 {[%clk 0:00:48]}  Ra2+ {[%clk 0:00:03]} 63. Kxf3 {[%clk 0:00:47]}  Rxh2 {[%clk 0:00:03]} 64. e5 {[%clk 0:00:48]}  Rh1 {[%clk 0:00:03]} 65. Ke4 {[%clk 0:00:46]}  Re1+ {[%clk 0:00:03]} 66. Kf5 {[%clk 0:00:46]}  Rf1+ {[%clk 0:00:04]} 67. Ke6 {[%clk 0:00:47]}  Rg1 {[%clk 0:00:04]} 68. g6 {[%clk 0:00:44]}  Ra1 {[%clk 0:00:05]} 69. Rf2 {[%clk 0:00:42]}  Ra6+ {[%clk 0:00:04]} 70. Kf5 {[%clk 0:00:40]}  Rxg6 {[%clk 0:00:03]} 71. Ra2 {[%clk 0:00:32]}  Rb6 {[%clk 0:00:02]} 72. Ra7+ {[%clk 0:00:33]}  Kf8 {[%clk 0:00:03]} 73. Rd7 {[%clk 0:00:33]}  Ke8 {[%clk 0:00:03]} 74. Rc7 {[%clk 0:00:32]}  Ra6 {[%clk 0:00:03]} 75. Rb7 {[%clk 0:00:32]}  Rc6 {[%clk 0:00:03]} 76. Ke4 {[%clk 0:00:33]}  Ra6 {[%clk 0:00:03]} 77. Kd5 {[%clk 0:00:33]}  Ra5+ {[%clk 0:00:03]} 78. Kd4 {[%clk 0:00:33]}  Ra4+ {[%clk 0:00:03]} 79. Kd3 {[%clk 0:00:33]}  Ra3+ {[%clk 0:00:04]} 80. Ke4 {[%clk 0:00:33]}  Ra4+ {[%clk 0:00:04]} 81. Kf5 {[%clk 0:00:34]}  Ra6 {[%clk 0:00:05]} 82. Rg7 {[%clk 0:00:34]}  Rb6 {[%clk 0:00:05]} 83. Ra7 {[%clk 0:00:31]}  Rc6 {[%clk 0:00:05]} 84. e6 {[%clk 0:00:30]}  Rc1 {[%clk 0:00:05]} 85. Ra8+ {[%clk 0:00:30]}  Ke7 {[%clk 0:00:06]} 86. Ra7+ {[%clk 0:00:30]}  Ke8 {[%clk 0:00:06]} 87. Ra8+ {[%clk 0:00:31]}  Ke7 {[%clk 0:00:06]} 88. Ra7+ {[%clk 0:00:32]}  Ke8 {[%clk 0:00:07]} 1/2-1/2


[Site "https://www.chess.com"]

[Event "Titled Tuesday Blitz November 2 2021"]
[White "Naroditsky, Daniel"]
[Black "Jobava, Baadur"]
[WhiteFideId "2026961"]
[BlackFideId "13601520"]
[WhiteElo "2608"]
[BlackElo "2731"]
[Result "1-0"]
[Round "06"]
[TimeControl "180+1"]
[Date "2021.11.02"]
[WhiteClock "0:00:17"]
[BlackClock "0:00:06"]

1. e4 {[%clk 0:03:00]}  e5 {[%clk 0:02:16]} 2. Nf3 {[%clk 0:03:00]}  Nc6 {[%clk 0:02:17]} 3. Bb5 {[%clk 0:03:01]}  a6 {[%clk 0:02:16]} 4. Ba4 {[%clk 0:02:58]}  b5 {[%clk 0:02:15]} 5. Bb3 {[%clk 0:02:58]}  Na5 {[%clk 0:02:16]} 6. d4 {[%clk 0:02:58]}  exd4 {[%clk 0:02:15]} 7. O-O {[%clk 0:02:23]}  Nxb3 {[%clk 0:02:08]} 8. axb3 {[%clk 0:02:22]}  c5 {[%clk 0:02:09]} 9. Re1 {[%clk 0:02:10]}  Ne7 {[%clk 0:01:51]} 10. c3 {[%clk 0:02:09]}  Nc6 {[%clk 0:01:25]} 11. cxd4 {[%clk 0:02:07]}  cxd4 {[%clk 0:01:25]} 12. Nxd4 {[%clk 0:02:06]}  Qf6 {[%clk 0:01:08]} 13. Nf5 {[%clk 0:02:00]}  Bb4 {[%clk 0:00:48]} 14. Nc3 {[%clk 0:01:49]}  Bxc3 {[%clk 0:00:48]} 15. Nd6+ {[%clk 0:01:44]}  Qxd6 {[%clk 0:00:43]} 16. Qxd6 {[%clk 0:01:42]}  Bxe1 {[%clk 0:00:43]} 17. Qg3 {[%clk 0:01:26]}  Bb7 {[%clk 0:00:41]} 18. Qxg7 {[%clk 0:01:00]}  O-O-O {[%clk 0:00:40]} 19. Bf4 {[%clk 0:00:56]}  Bb4 {[%clk 0:00:35]} 20. Rc1 {[%clk 0:00:57]}  d6 {[%clk 0:00:22]} 21. Qxf7 {[%clk 0:00:43]}  Rhf8 {[%clk 0:00:19]} 22. Qe6+ {[%clk 0:00:42]}  Kb8 {[%clk 0:00:20]} 23. Be3 {[%clk 0:00:41]}  Ka8 {[%clk 0:00:17]} 24. h3 {[%clk 0:00:35]}  Rde8 {[%clk 0:00:12]} 25. Qh6 {[%clk 0:00:34]}  Rf7 {[%clk 0:00:10]} 26. Qh5 {[%clk 0:00:27]}  Rfe7 {[%clk 0:00:08]} 27. f3 {[%clk 0:00:27]}  Re5 {[%clk 0:00:05]} 28. Qxh7 {[%clk 0:00:24]}  d5 {[%clk 0:00:05]} 29. Rxc6 {[%clk 0:00:18]}  R5e7 {[%clk 0:00:06]} 30. Qg6 {[%clk 0:00:17]} 1-0


[Site "https://www.chess.com"]

[Event "Titled Tuesday Blitz November 2 2021"]
[White "Ozen, Bahadir"]
[Black "Nesterov, Arseniy"]
[WhiteFideId "6337058"]
[BlackFideId "24198455"]
[WhiteElo "2503"]
[BlackElo "2494"]
[Result "1-0"]
[Round "06"]
[TimeControl "180+1"]
[Date "2021.11.02"]
[WhiteClock "0:00:52"]
[BlackClock "0:00:01"]

1. Nf3 {[%clk 0:03:00]}  d5 {[%clk 0:02:59]} 2. e3 {[%clk 0:03:00]}  Nf6 {[%clk 0:02:59]} 3. c4 {[%clk 0:03:00]}  c6 {[%clk 0:02:59]} 4. Nc3 {[%clk 0:03:01]}  e6 {[%clk 0:02:59]} 5. b3 {[%clk 0:03:01]}  Bd6 {[%clk 0:02:59]} 6. Bb2 {[%clk 0:03:01]}  O-O {[%clk 0:02:59]} 7. Rc1 {[%clk 0:03:02]}  Nbd7 {[%clk 0:02:54]} 8. Qc2 {[%clk 0:02:44]}  b6 {[%clk 0:02:49]} 9. d4 {[%clk 0:02:40]}  Bb7 {[%clk 0:02:47]} 10. cxd5 {[%clk 0:02:38]}  exd5 {[%clk 0:02:46]} 11. Bd3 {[%clk 0:02:38]}  c5 {[%clk 0:02:41]} 12. O-O {[%clk 0:02:38]}  Rc8 {[%clk 0:02:31]} 13. Qe2 {[%clk 0:02:37]}  Qe7 {[%clk 0:02:22]} 14. Rfd1 {[%clk 0:02:17]}  Rfd8 {[%clk 0:02:21]} 15. Ba6 {[%clk 0:02:15]}  Bxa6 {[%clk 0:01:51]} 16. Qxa6 {[%clk 0:02:14]}  Nb8 {[%clk 0:01:46]} 17. Qb5 {[%clk 0:02:13]}  Nc6 {[%clk 0:01:28]} 18. dxc5 {[%clk 0:02:10]}  bxc5 {[%clk 0:01:29]} 19. Ne2 {[%clk 0:01:53]}  Ne4 {[%clk 0:01:21]} 20. Ng3 {[%clk 0:01:50]}  Qe6 {[%clk 0:01:15]} 21. Ba3 {[%clk 0:01:39]}  c4 {[%clk 0:00:47]} 22. Bxd6 {[%clk 0:01:35]}  Nxd6 {[%clk 0:00:41]} 23. Qxd5 {[%clk 0:01:33]}  Qxd5 {[%clk 0:00:41]} 24. Rxd5 {[%clk 0:01:34]}  Nb4 {[%clk 0:00:42]} 25. Ra5 {[%clk 0:01:11]}  Nd3 {[%clk 0:00:23]} 26. Rc3 {[%clk 0:01:07]}  cxb3 {[%clk 0:00:13]} 27. Rxc8 {[%clk 0:01:07]}  Rxc8 {[%clk 0:00:13]} 28. axb3 {[%clk 0:01:08]}  Rc1+ {[%clk 0:00:04]} 29. Nf1 {[%clk 0:01:08]}  Ne4 {[%clk 0:00:02]} 30. Rxa7 {[%clk 0:01:06]}  g6 {[%clk 0:00:02]} 31. Ra2 {[%clk 0:01:03]}  Nc3 {[%clk 0:00:02]} 32. Rd2 {[%clk 0:01:03]}  Nc5 {[%clk 0:00:03]} 33. Nd4 {[%clk 0:00:54]}  N5e4 {[%clk 0:00:02]} 34. Rb2 {[%clk 0:00:54]}  Nd1 {[%clk 0:00:02]} 35. Rc2 {[%clk 0:00:51]}  Rb1 {[%clk 0:00:01]} 36. f3 {[%clk 0:00:52]} 1-0


[Site "https://www.chess.com"]